Cogmind - Beta 15 @@@ ROGUE MODE // 2025.06.24 @ 22:26:34 Player: nado Result: Destroyed by RK-8IQ(M) with Barrage Gun Performance ------------- Evolutions (3) 1500 Regions Visited (8) 1600 Robots Destroyed (62) 310 Value Destroyed (1703) 1703 Prototype IDs (8) 160 Alien Tech Used (0) 0 Bonus (0) 0 TOTAL SCORE: 5273 Bonus ------- None Cogmind --------- Core Integrity 0/700 Matter 10/300 Energy 100/100 System Corruption 5% Temperature Cool (0) Movement Core (700) Ox13 Location -7/Lower Caves Parts ------- > --- POWER (1) -------- (None) > --- PROPULSION (4) --- (None) > --- UTILITY (5) ------ High-capacity Storage Unit Hacking Suite > --- WEAPON (3) ------- (None) > --- INVENTORY (20) --- Light Nuclear Core Improved Deuterium Engine Improved Treads Improved Treads Cooling System Huge Storage Unit High-capacity Matter Pod (113) High-powered Tractor Beam Heavy Laser EM Pulse Cannon Ion Cannon Enhanced Autogun Improved Grenade Launcher Missile Launcher Peak State ------------ > --- POWER ------------ Micro Nuclear Core > --- PROPULSION ------- Light Treads Light Treads Light Treads Improved Treads > --- UTILITY ---------- Coolant Injector High-capacity Storage Unit Layered Light Armor Plating Layered Light Armor Plating Hacking Suite > --- WEAPON ----------- Enhanced Autogun Enhanced Autogun Heavy Battle Rifle > --- INVENTORY -------- Light Nuclear Core Improved Deuterium Engine Light Treads Improved Treads Improved Treads Improved Treads Cooling System Huge Storage Unit High-capacity Matter Pod High-powered Tractor Beam Heavy Laser EM Pulse Cannon Ion Cannon High-powered Shotgun Enhanced Autogun Improved Grenade Launcher Missile Launcher [Rating: 41] Favorites ----------- Power Ion Engine Engine Ion Engine Power Core Light Nuclear Core Propulsion Light Treads Treads Light Treads Leg Aluminum Leg Utility High-capacity Storage Unit Device Heat Sink Storage High-capacity Storage Unit Processor Improved Signal Interpreter Hackware Hacking Suite Protection Layered Light Armor Plating Weapon Enhanced Autogun Energy Gun Particle Gun Ballistic Gun Enhanced Autogun Ballistic Cannon Light Cannon Launcher Missile Launcher Build | -11 -10 -10 -10 -9 -8 -7 -7 -7 ------- Run | Yrd Mat Min Exi Min Mat Fac Low Low Slots Evolved 6 | . . . . . 4 2 . . Power . | . . . . . . . . . Propulsion 2 | . . . . . 1 1 . . Utility 3 | . . . . . 2 1 . . Weapon 1 | . . . . . 1 . . . Parts Attached 64 | . 12 . 1 1 33 7 10 . Power 6 | . 1 . . . 4 . 1 . Engine 4 | . 1 . . . 3 . . . Core 2 | . . . . . 1 . 1 . Reactor . | . . . . . . . . . Propulsion 21 | . 5 . . . 10 2 4 . Treads 15 | . . . . . 9 2 4 . Leg 6 | . 5 . . . 1 . . . Wheel . | . . . . . . . . . Hover . | . . . . . . . . . Flight . | . . . . . . . . . Utility 21 | . 3 . 1 . 9 5 3 . Device 6 | . 1 . . . 3 1 1 . Storage 4 | . 1 . 1 . . 2 . . Processor 1 | . . . . . . 1 . . Hackware 1 | . . . . . . 1 . . Protection 9 | . 1 . . . 6 . 2 . Artifact . | . . . . . . . . . Weapon 16 | . 3 . . 1 10 . 2 . Energy Gun 4 | . 2 . . . 2 . . . Energy Cannon . | . . . . . . . . . Ballistic Gun 8 | . 1 . . . 6 . 1 . Ballistic Cannon 2 | . . . . 1 1 . . . Launcher 2 | . . . . . 1 . 1 . Special Weapon . | . . . . . . . . . Impact Weapon . | . . . . . . . . . Slashing Weapon . | . . . . . . . . . Piercing Weapon . | . . . . . . . . . Special Melee Weapon . | . . . . . . . . . Unidentified Prototypes 1 | . . . . . 1 . . . Parts Lost 29 | . 7 . . . 1 . 19 2 Power 4 | . 2 . . . . . 2 . Propulsion 11 | . 3 . . . . . 8 . Utility 8 | . . . . . 1 . 6 1 Weapon 6 | . 2 . . . . . 3 1 Highest Loss Streak 8 | . 4 . . . 1 . 8 1 To Critical Strikes 2 | . . . . . . . 1 1 Average Backups 16 | . 12 15 15 14 19 19 18 14 Power . | . . . . . . 1 2 2 Propulsion 5 | . 5 6 6 6 6 5 4 2 Utility 4 | . 1 2 2 2 6 6 5 4 Weapon 6 | . 4 7 7 6 6 5 6 6 Tool/Special . | . . . . . . . . . Unused Backups 27 | . 4 . 1 . 12 . . 10 Power 3 | . 1 . . . . . . 2 Propulsion 5 | . 1 . . . 2 . . 2 Utility 4 | . 1 . . . 2 . . 1 Weapon 15 | . 1 . 1 . 8 . . 5 Tool/Special . | . . . . . . . . . Average Slot Usage (%) 82 | . 92 85 59 84 97 97 90 29 Engine 4 | . 9 . . . 6 7 1 . Core 1 | . . . . . 1 . 3 . Treads 13 | . . . . . 25 27 25 . Leg 9 | . 27 28 28 28 1 . . . Device 10 | . 8 14 14 14 11 13 6 6 Storage 9 | . 14 14 14 14 9 7 7 7 Hackware 1 | . . . . . . 1 7 7 Protection 8 | . 2 . . . 15 7 13 . Energy Gun 5 | . 17 14 1 . 6 . . . Ballistic Gun 14 | . 10 14 1 13 17 23 21 6 Ballistic Cannon 1 | . . . . 14 2 . . . Peak Build Rating 41 | . 8 7 7 7 32 37 41 15 Average Rating 18 | . 7 7 5 6 22 35 36 14 On Entrance 13 | 6 6 7 7 5 7 32 37 15 Naked Turns . | . . . . . . . . . Heaviest Build 71 | 13 29 23 41 45 66 64 71 44 Greatest Support 83 | 20 20 20 20 20 60 80 83 3 Greatest Overweight (x) 14 | . 7 1 2 2 1 1 14 14 Average Overweight (x) 1 | . . 1 1 2 . . . 13 Largest Inventory Capacity 25 | . 15 15 20 20 20 25 20 20 Average Capacity 18 | . 13 15 15 20 20 19 20 20 Most Carried 20 | . 15 15 15 15 20 20 20 14 Average Carried 16 | . 12 15 14 14 19 19 18 14 Final Capacity 20 | 8 15 15 20 20 20 20 20 20 Final Carried 20 | 6 15 15 15 15 20 20 14 14 Class Distribution -------------------- 40% | Mutant 31% | Scavenger-Tank 11% | Tank 8% | Scavenger-Mutant 5% | Scavenger-Skirmisher Dominant Class ---------------- Mutant | -10/Materials Scavenger-Mutant | -10/Mines Mutant | -10/Exiles Mutant | -9/Mines Scavenger-Tank | -8/Materials Scavenger-Skirmisher | -7/Factory Scavenger-Tank | -7/Lower Caves Mutant | -7/Lower Caves Resources | -11 -10 -10 -10 -9 -8 -7 -7 -7 ----------- Run | Yrd Mat Min Exi Min Mat Fac Low Low Matter Collected 2238 | 197 354 . 18 38 1111 190 330 . Remotely . | . . . . . . . . . Salvage Created 2168 | . 490 . . 26 1242 185 225 . Parts 138 | . 32 . . 6 82 10 8 . Haulers Intercepted 7 | . 1 . . . 6 . . . Recyclers Shooed 4 | . . . . . 4 . . . Parts Field Recycled . | . . . . . . . . . Retrieved Matter . | . . . . . . . . . Parts Self-Destructed 7 | . . . . . . . 7 . Prevented . | . . . . . . . . . Kills | -11 -10 -10 -10 -9 -8 -7 -7 -7 ------- Run | Yrd Mat Min Exi Min Mat Fac Low Low Combat Hostiles Destroyed 49 | . 12 . . 4 25 4 4 . Guns 46 | . 12 . . 1 25 4 4 . Cannons 3 | . . . . 3 . . . . Classes Destroyed 12 | . 4 . . . 6 . 2 . Worker 2 | . 1 . . . 1 . . . Builder 1 | . . . . . 1 . . . Tunneler 1 | . . . . . 1 . . . Hauler 7 | . 1 . . . 6 . . . Recycler 2 | . . . . . 2 . . . Swarmer 16 | . 3 . . 4 9 . . . Grunt 18 | . 9 . . . 6 3 . . Brawler 1 | . . . . . . . 1 . Duelist 2 | . . . . . 1 . 1 . Sentry 9 | . . . . . 7 1 1 . Hunter 2 | . . . . . 2 . . . Programmer 1 | . . . . . . . 1 . Best Kill Streak 4 | . 2 . . 4 3 3 3 . Combat Bots Only 4 | . 2 . . 4 3 3 3 . Max Kills in Single Turn 2 | . 2 . . 2 2 1 1 . Gunslinging 1 | . . . . . 1 . . . Exploded . | . . . . . . . . . Melee . | . . . . . . . . . Uniques/NPCs Destroyed . | . . . . . . . . . Combat | -11 -10 -10 -10 -9 -8 -7 -7 -7 -------- Run | Yrd Mat Min Exi Min Mat Fac Low Low Hostile Shots Fired 628 | . 93 . . 17 134 50 278 56 Missed 192 | . 21 . . 3 32 18 109 9 Hits 436 | . 72 . . 14 102 32 169 47 Melee 10 | . . . . . . . 10 . Projectile 426 | . 72 . . 14 102 32 159 47 Critical Strikes 9 | . . . . . 2 . 4 3 Damage Taken 5887 | . 830 . . 113 1347 279 2583 735 Core 1029 | . 191 . . 42 83 39 246 428 Absorbed by Shields . | . . . . . . . . . Core Remaining (%) 63 | 100 . . . 6 84 . . . Volleys Fired 217 | . 65 . . 12 83 17 40 . Largest 3 | . 2 . . 2 3 3 3 . Hottest 120 | . 90 . . 50 120 75 83 . Shots Fired 550 | . 129 . . 24 238 50 109 . Gun 512 | . 129 . . 12 219 50 102 . Cannon 31 | . . . . 12 19 . . . Launcher 7 | . . . . . . . 7 . Special . | . . . . . . . . . Kinetic 393 | . 46 . . 24 171 50 102 . Thermal 150 | . 83 . . . 67 . . . Explosive 7 | . . . . . . . 7 . Electromagnetic . | . . . . . . . . . Robot Hit Streak 19 | . 12 . . 5 19 8 14 . Robot Miss Streak 6 | . 2 . . 3 6 6 3 . Penetration Max . | . . . . . . . . . Secondary Targets 6 | . 1 . . . 4 . 1 . Max Gunslinging Chain 1 | . 1 . . . 1 . 1 . Shots Hit Robots 366 | . 94 . . 14 150 33 75 . Core Hits 121 | . 28 . . 5 60 13 15 . Critical Kills 1 | . . . . . . . 1 . Critical Parts Destroyed . | . . . . . . . . . Critical Strikes 6 | . 4 . . . 1 . 1 . Burn 5 | . 4 . . . 1 . . . Destroy 1 | . . . . . . . 1 . Melee Attacks . | . . . . . . . . . Impact . | . . . . . . . . . Slashing . | . . . . . . . . . Piercing . | . . . . . . . . . Sneak Attacks . | . . . . . . . . . Combat Hostiles . | . . . . . . . . . Follow-up Attacks . | . . . . . . . . . Damage Inflicted 5817 | . 1008 . . 186 2578 585 1460 . Guns 5420 | . 1008 . . 54 2338 560 1460 . Cannons 280 | . . . . 122 158 . . . Explosions . | . . . . . . . . . Melee . | . . . . . . . . . Ramming 117 | . . . . 10 82 25 . . Kinetic 4287 | . 267 . . 176 1824 560 1460 . Thermal 1413 | . 741 . . . 672 . . . Explosive . | . . . . . . . . . Electromagnetic . | . . . . . . . . . Impact . | . . . . . . . . . Slashing . | . . . . . . . . . Piercing . | . . . . . . . . . Highest Corruption 5 | . 2 2 2 2 . . 5 5 Average Corruption 3 | . 2 2 2 2 . . 4 5 Corruption Purged . | . . . . . . . . . Corruption Blocked . | . . . . . . . . . Effects 64 | . 8 . 7 4 . . 21 24 Message Errors 15 | . 1 . 4 . . . 3 7 Matter Fused 15 | . 1 . 3 1 . . 7 3 Heat Flow Errors 14 | . 1 . . 1 . . 3 9 Energy Discharges 7 | . . . . 1 . . 2 4 Parts Fused 1 | . . . . . . . . 1 Data Loss (minor) 3 | . 1 . . . . . 2 . Misfires 3 | . . . . . . . 3 . Alerts 6 | . 4 . . 1 . . 1 . Overload Shots . | . . . . . . . . . Overflow Damage 4 | . . . . 4 . . . . Projectiles 4 | . . . . 4 . . . . Explosions . | . . . . . . . . . Melee . | . . . . . . . . . Knockbacks 8 | . . . . 3 4 1 . . Impact 3 | . . . . . 2 1 . . Kinetic 4 | . . . . 2 2 . . . Secondary 1 | . . . . 1 . . . . Self-Inflicted Damage . | . . . . . . . . . Shots . | . . . . . . . . . Rammed 15 | . . . . . 14 1 . . Targets Rammed 17 | . . . . 1 15 1 . . Kicked 1 | . . . . 1 . . . . Crushed 1 | . . . . . 1 . . . Highest Temperature 443 | . 264 . . 175 443 10 346 197 Average Temperature 93 | . 75 . . 90 98 5 111 86 Received Heat Transfer 1620 | . 405 . . . 405 102 708 . Effects 5 | . . . . . 3 . 2 . Shutdowns 1 | . . . . . 1 . . . Interference 2 | . . . . . . . 2 . Matter Decay 2 | . . . . . 2 . . . Siege Activations . | . . . . . . . . . Martial Activations . | . . . . . . . . . Shielding Activations . | . . . . . . . . . Robots Disrupted . | . . . . . . . . . Combat Hostiles . | . . . . . . . . . Robots Corrupted . | . . . . . . . . . Combat Hostiles . | . . . . . . . . . Parts Fried . | . . . . . . . . . Impact Corruptions . | . . . . . . . . . Robots Melted . | . . . . . . . . . Combat Hostiles . | . . . . . . . . . Parts Melted 11 | . 9 . . . 2 . . . Heat Transferred 3991 | . 2289 . . . 1702 . . . Parts Sabotaged . | . . . . . . . . . Parts Stolen . | . . . . . . . . . Parts Stripped . | . . . . . . . . . Power Chain Reactions . | . . . . . . . . . Alert | -11 -10 -10 -10 -9 -8 -7 -7 -7 ------- Run | Yrd Mat Min Exi Min Mat Fac Low Low Maximum Alert Level 1 | . . . . . 1 . . . Low Security (%) 85 | . 100 100 . 100 73 100 . . Level 1 14 | . . . . . 26 . . . Level 2 . | . . . . . . . . . Level 3 . | . . . . . . . . . Level 4 . | . . . . . . . . . Level 5 . | . . . . . . . . . High Security . | . . . . . . . . . Max Security . | . . . . . . . . . Peak Influence 326 | . 76 1 . 70 326 138 . . Initial 107 | . . 1 . . . 107 . . Average 70 | . 29 . . 16 103 62 . . Influence Increases 1650 | . 508 . . 90 860 102 90 . Destroy 0b10 Robot/C 980 | . 240 . . 80 500 80 80 . Destroy 0b10 Robot/NC 65 | . 10 . . . 55 . . . Destroy Leader 234 | . 52 . . 10 142 20 10 . Successful Hack 45 | . 11 . . . 34 . . . Select Force Hacks 60 | . 60 . . . . . . . Disable Machine 15 | . . . . . 15 . . . Destroy Structure 11 | . . . . . 9 2 . . Lose Combat Pursuer 240 | . 135 . . . 105 . . . Influence Decreases 1650 | . 504 4 . 90 622 340 90 . Entered New Map 134 | . . 3 . . . 131 . . Time Decay 1286 | . 444 1 . 90 472 209 70 . Lost Part 80 | . 60 . . . . . 20 . Purge Threat 150 | . . . . . 150 . . . Squads Dispatched 5 | . 2 . . . 1 2 . . Investigation 3 | . 2 . . . 1 . . . Extermination 1 | . . . . . . 1 . . Reinforcement 1 | . . . . . . 1 . . Assault . | . . . . . . . . . Garrison . | . . . . . . . . . Intercept . | . . . . . . . . . Searches Triggered . | . . . . . . . . . Construction Impeded . | . . . . . . . . . Haulers Reinforced . | . . . . . . . . . Active Scanning Responses . | . . . . . . . . . Cargo Convoy Interrupts . | . . . . . . . . . Stealth | -11 -10 -10 -10 -9 -8 -7 -7 -7 --------- Run | Yrd Mat Min Exi Min Mat Fac Low Low Distress Signals 6 | . 2 . . . 4 . . . Communications Jammed . | . . . . . . . . . Distress Signals . | . . . . . . . . . Times Spotted 101 | . 28 . . 4 54 6 8 1 Peak Tracking Total 6 | . 6 . . 4 6 3 4 1 Tactical Retreats 12 | . 8 . . . 4 . . . Traps | -11 -10 -10 -10 -9 -8 -7 -7 -7 ------- Run | Yrd Mat Min Exi Min Mat Fac Low Low Traps Triggered 3 | . 1 . . . 2 . . . Indirectly . | . . . . . . . . . Trap Hack Attempts . | . . . . . . . . . Triggered . | . . . . . . . . . Disarmed . | . . . . . . . . . Reprogrammed . | . . . . . . . . . Reused . | . . . . . . . . . Traps Extracted . | . . . . . . . . . Installed . | . . . . . . . . . Triggered . | . . . . . . . . . Machines | -11 -10 -10 -10 -9 -8 -7 -7 -7 ---------- Run | Yrd Mat Min Exi Min Mat Fac Low Low Machines Disabled 1 | . . . . . 1 . . . Max in Single Turn 1 | . . . . . 1 . . . Garrison Access 1 | . . . . . 1 . . . Machines Repaired . | . . . . . . . . . Machines Dismantled . | . . . . . . . . . Machines Sabotaged . | . . . . . . . . . Overloaded Fab Kills . | . . . . . . . . . Hacking | -11 -10 -10 -10 -9 -8 -7 -7 -7 --------- Run | Yrd Mat Min Exi Min Mat Fac Low Low Machines Accessed 20 | . 9 . 1 . 9 1 . . Terminals 16 | . 7 . . . 8 1 . . Fabricators . | . . . . . . . . . Repair Stations . | . . . . . . . . . Recycling Units 2 | . 2 . . . . . . . Scanalyzers . | . . . . . . . . . Garrison Access 1 | . . . . . 1 . . . Total Hacks 49 | . 19 . 1 . 26 3 . . Successful 26 | . 11 . 1 . 14 . . . Failed 23 | . 8 . . . 12 3 . . Catastrophic 3 | . 1 . . . 1 1 . . Database Lockouts . | . . . . . . . . . Manual 37 | . 14 . . . 20 3 . . Terminals 45 | . 17 . . . 25 3 . . Fabricators . | . . . . . . . . . Repair Stations . | . . . . . . . . . Recycling Units 2 | . 2 . . . . . . . Scanalyzers . | . . . . . . . . . Garrison Access 1 | . . . . . 1 . . . Terminal Hacks 12 | . 4 . 1 . 7 . . . Record 1 | . . . 1 . . . . . Part Schematic 1 | . 1 . . . . . . . Robot Analysis 4 | . 1 . . . 3 . . . Prototype ID Bank 4 | . 2 . . . 2 . . . Branch Access Points 1 | . . . . . 1 . . . Unreport Threat 1 | . . . . . 1 . . . Fabricator Hacks . | . . . . . . . . . Repair Station Hacks . | . . . . . . . . . Recycling Unit Hacks . | . . . . . . . . . Scanalyzer . | . . . . . . . . . Garrison Access Hacks 1 | . . . . . 1 . . . Seal Access 1 | . . . . . 1 . . . Unauthorized Hacks 13 | . 7 . . . 6 . . . Terminals 11 | . 5 . . . 6 . . . Botnet 1 | . . . . . 1 . . . Skim 10 | . 5 . . . 5 . . . Fabricators . | . . . . . . . . . Repair Stations . | . . . . . . . . . Recycling Units 2 | . 2 . . . . . . . Tunnel 2 | . 2 . . . . . . . Scanalyzers . | . . . . . . . . . Garrison Access . | . . . . . . . . . Data Cores Recovered . | . . . . . . . . . Used . | . . . . . . . . . Hacking Detections 15 | . 7 . . . 7 1 . . Full Trace Events . | . . . . . . . . . Feedback Events . | . . . . . . . . . Feedback Blocked . | . . . . . . . . . Robot Schematics Acquired . | . . . . . . . . . Robots Built . | . . . . . . . . . Authchips . | . . . . . . . . . Time . | . . . . . . . . . Total Robot Build Rating . | . . . . . . . . . Part Schematics Acquired 1 | . 1 . . . . . . . Parts Built . | . . . . . . . . . Authchips . | . . . . . . . . . Time . | . . . . . . . . . Total Part Build Rating . | . . . . . . . . . Parts Repaired . | . . . . . . . . . Time . | . . . . . . . . . Parts Recycled . | . . . . . . . . . Recycled Matter . | . . . . . . . . . Retrieved Matter . | . . . . . . . . . Retrieved Components . | . . . . . . . . . Parts Scanalyzed . | . . . . . . . . . Part Schematics Acquired . | . . . . . . . . . Parts Damaged . | . . . . . . . . . Bothacking | -11 -10 -10 -10 -9 -8 -7 -7 -7 ------------ Run | Yrd Mat Min Exi Min Mat Fac Low Low Used RIF Installer . | . . . . . . . . . Robots Hacked . | . . . . . . . . . Non-combat . | . . . . . . . . . Combat . | . . . . . . . . . Robot Hacks Applied . | . . . . . . . . . Relay Couplers Released . | . . . . . . . . . Fabnet Peak Effective % . | . . . . . . . . . Robots Rewired . | . . . . . . . . . Allies Hacked . | . . . . . . . . . Hacks Repelled . | . . . . . . . . . Allies | -11 -10 -10 -10 -9 -8 -7 -7 -7 -------- Run | Yrd Mat Min Exi Min Mat Fac Low Low Total Allies . | . . . . . . . . . Largest Group . | . . . . . . . . . Highest-Rated Group . | . . . . . . . . . Highest-Rated Ally . | . . . . . . . . . Total Orders . | . . . . . . . . . Ally Attacks . | . . . . . . . . . Total Damage . | . . . . . . . . . Kills . | . . . . . . . . . Allies Corrupted . | . . . . . . . . . Allies Melted . | . . . . . . . . . Intel | -11 -10 -10 -10 -9 -8 -7 -7 -7 ------- Run | Yrd Mat Min Exi Min Mat Fac Low Low Active Infowar (turns) 716 | . . . . . . 510 206 . Sensors 716 | . . . . . . 510 206 . Robot Analysis Total 4 | . 1 . . . 3 . . . Derelict Logs Recovered 3 | . . 1 . 1 . . 1 . Drone Launches . | . . . . . . . . . Drone Recoveries . | . . . . . . . . . Exploration | -11 -10 -10 -10 -9 -8 -7 -7 -7 ------------- Run | Yrd Mat Min Exi Min Mat Fac Low Low Turns Passed 9348 | . 1703 189 675 402 3363 545 1179 1292 Spaces Moved 3592 | 1 833 100 344 140 1241 227 532 174 Core 177 | . 2 . . . . . 1 174 Treads 1903 | . . . . . 1145 227 531 . Legs 1512 | 1 831 100 344 140 96 . . . Wheels . | . . . . . . . . . Hover . | . . . . . . . . . Flight . | . . . . . . . . . Fastest Speed 120 | 120 120 190 190 260 160 160 160 700 Average Speed 231 | 120 174 190 196 260 233 178 197 745 Slowest Speed 750 | 120 400 190 260 260 240 240 750 750 Overloaded Moves . | . . . . . . . . . Propulsion Burnouts . | . . . . . . . . . Robots Hopped . | . . . . . . . . . Potential Cave-ins . | . . . . . . . . . Cave-ins Triggered . | . . . . . . . . . Exploration Rate (%) 43 | 1 98 17 76 33 87 4 54 24 Regions Visited 8 Branch Regions 5 Pre-discovered Areas 6 | . 4 . 1 . 1 . . . Known Exits Taken 4 | . 1 1 1 . . 1 . . Unknown Exits Taken 4 | 1 . . . 1 1 . 1 . Scrap Searched 2 | . . . . . . . 2 . Spaces Dug 76 | . . . . . . . 76 . Terrain Destroyed 109 | . . . . . . . 109 . Melee . | . . . . . . . . . Projectile . | . . . . . . . . . AOE 109 | . . . . . . . 109 . Terrain Rammed . | . . . . . . . . . Walls Destroyed . | . . . . . . . . . Machines Disabled . | . . . . . . . . . Actions | -11 -10 -10 -10 -9 -8 -7 -7 -7 --------- Run | Yrd Mat Min Exi Min Mat Fac Low Low Total 4243 | . 966 99 348 156 1551 341 608 174 Wait 215 | . 40 . . . 100 67 8 . Move 3584 | . 832 99 343 139 1240 226 531 174 Hop . | . . . . . . . . . Pick Up 64 | . 12 . . 2 32 17 1 . Fast Attach 27 | . 5 . . . 15 1 6 . Attach 25 | . 5 . . 2 8 2 8 . Detach 4 | . 2 . 1 . . . 1 . Swap 25 | . 2 . 1 . 13 7 2 . Drop 55 | . 3 . 3 . 45 3 1 . Fire 217 | . 65 . . 12 83 17 40 . Melee . | . . . . . . . . . Ram . | . . . . . . . . . Kick 1 | . . . . 1 . . . . Crush 16 | . . . . . 15 1 . . Escape Stasis . | . . . . . . . . . Rewire 10 | . . . . . . . 10 . Trap . | . . . . . . . . . Miscellaneous . | . . . . . . . . . Route ------- -11/Scrapyard -10/Materials (discovered 6 exits: *Mat x3 / *Min x2 / Sub) -10/Mines -10/Exiles (discovered 2 exits: *Min x2) -9/Mines -8/Materials (discovered 3 exits: *Fac / *Sto x2) -7/Factory -7/Lower Caves -7/Lower Caves History --------- Turn | Location | Event 1 | -11/Scrapyard | Discovered new exit (range 0) 1 | -11/Scrapyard | Entered Materials 63 | -10/Materials | Discovered new exit (range 13) 307 | -10/Materials | Build established: Mutant 761 | -10/Materials | Discovered new exit (range 9) 1149 | -10/Materials | Learned location of Storage (-8) 1185 | -10/Materials | Core integrity fell below 50% 1187 | -10/Materials | Learned Storage emergency access door positions 1215 | -10/Materials | Learned location of Mines (-9) 1235 | -10/Materials | Learned location of 1 exit from Recycling 1235 | -10/Materials | Lost 4 parts (1p2n1w) 1247 | -10/Materials | Learned Recycling recycling unit intel 1248 | -10/Materials | Discovered new exit (range 15) 1250 | -10/Materials | Identified exit to Mines 1319 | -10/Materials | Identified exit to Subcaves 1319 | -10/Materials | Identified exit to Materials 1516 | -10/Materials | Build established: Scavenger-Mutant 1704 | -10/Materials | Entered Mines 1798 | -10/Mines | Identified exit to Exiles 1883 | -10/Mines | Deemed a non-threat by the Exiles lab entrance 1893 | -10/Mines | Entered Exiles 1894 | -10/Exiles | Identified exit to Mines 1963 | -10/Exiles | Met 8R-AWN 1994 | -10/Exiles | Met EX-HEX 2102 | -10/Exiles | Met EX-DEC 2141 | -10/Exiles | Visited The Gauntlet 2239 | -10/Exiles | Build established: Mutant 2378 | -10/Exiles | Learned location of Zion (-7) 2542 | -10/Exiles | Discovered exit to Mines (range 10) 2568 | -10/Exiles | Entered Mines 2594 | -9/Mines | Learned location of 1 exit from Materials 2675 | -9/Mines | Core integrity fell below 20% 2877 | -9/Mines | Received a Rocket Launcher from a helpful Derelict 2944 | -9/Mines | Discovered new exit (range 11) 2970 | -9/Mines | Entered Materials 2970 | -8/Materials | Evolved 4 slots: Propulsion x1, Utility x2, Weapon x1 2971 | -8/Materials | Identified exit to Storage 3462 | -8/Materials | Build established: Tank 4160 | -8/Materials | Build established: Scavenger-Tank 4381 | -8/Materials | Discovered new exit (range 6) 5909 | -8/Materials | Learned Storage emergency access door positions 5942 | -8/Materials | Learned location of 1 exit from Storage 5983 | -8/Materials | Learned location of 1 exit from Storage 5985 | -8/Materials | Learned location of 1 exit from Recycling 5986 | -8/Materials | Learned Storage trap positions 5992 | -8/Materials | Learned 12 Factory zone layouts 6010 | -8/Materials | Learned Storage security intel 6296 | -8/Materials | Build established: Tank 6333 | -8/Materials | Entered Factory 6333 | -7/Factory | Evolved 2 slots: Propulsion x1, Utility x1 6833 | -7/Factory | Build established: Scavenger-Skirmisher 6846 | -7/Factory | Discovered new exit (range 6) 6854 | -7/Factory | Identified exit to Lower Caves 6878 | -7/Factory | Entered Lower Caves 7063 | -7/Lower Caves | Attracted the attention of an 0b10 checkpoint 7117 | -7/Lower Caves | Lost 5 parts (1p1n3u) 7231 | -7/Lower Caves | Spotted B-75 Beast 7349 | -7/Lower Caves | Build established: Tank 7419 | -7/Lower Caves | Learned location of 1 exit from Proximity Caves 7681 | -7/Lower Caves | Build established: Scavenger-Tank 7949 | -7/Lower Caves | Lost 6 parts (3n1u2w) 8031 | -7/Lower Caves | Discovered new exit (range 11) 8057 | -7/Lower Caves | Entered another Lower Caves area 8087 | -7/Lower Caves | Lost 8 parts (1p4n2u1w) 8196 | -7/Lower Caves | Build established: Mutant 8395 | -7/Lower Caves | Spotted B-75 Beast 8576 | -7/Lower Caves | Encountered a Warlord checkpoint 9229 | -7/Lower Caves | Attacked by a delusional Derelict stockpiling parts 9253 | -7/Lower Caves | Core integrity fell below 50% 9299 | -7/Lower Caves | Core integrity fell below 20% 9349 | -7/Lower Caves | Destroyed by RK-8IQ(M) with Barrage Gun Last Messages --------------- 08587_ System corrupted: Heat flow error (+254). 08610_ X9GFD2XMPOFRUYROOZLYVAQADAON3SBS: 08693_ System corrupted: Energy discharge (-37). 08760_ &FOW4AEF5H7D,AFEV4ZQFT|>T:JE8IXAZ1EWQH 08837_ 51X 3N8N2>KLSCMIUL DHFLSLL6LZP ISA7DY#FQ 08878_ System corrupted: Heat flow error (+287). 08894_ System corrupted: FCS attempts to trigger Enh. Autogun. 08910_ System corrupted: Heat flow error (+189). 09118_ E=>KQSKPXVQTA/XFX GFRBCK=DR0NDBZTL2I 09170_ System corrupted: FCS attempts to trigger Enh. Autogun. 09229_ RK-8IQ(M): "Sorry but these parts are key to ensuring the security of my future empire, and I can't risk letting you telling anyone about it." 09257_ Critical hit (Destroy). 09257_ Enh. Autogun destroyed. 09259_ System corrupted: Heat flow error (+154). 09290_ System corrupted: Heat flow error (+147). 09307_ System corrupted: Energy discharge (-28). 09326_ ZH,K|T CUHS9EO|X>8TKSQAXVPXM9N 09332_ Coolant Injector destroyed. Map ----- +----------------------------------------------------+ | ?????????????????????????????????????????????????? | | ?????????????????????????????????????????????????? | | ?????????????????????????????????????????????????? | | ?????????????????????????????????????????????????? | | ?????????????????????????????????????????????????? | | ?????????????????????????????????????????????????? | | ?????????????????????????????????????????????????? | | ?????????????????????????????????????????????????? | | ?????????????????????????????????????????????????? | | ?????????????????????????????????????????????????? | | ?????????????????????????????????????????????????? | | ?????????????????????????????????????????????????? | | ?????????????????????????????????????????????????? | | ???????????######????????????????????????????????? | | ???????##??# ##???????######??????????????????? | | ???????#] ??# ######### ##?######??????????? | | ???????#] ???# ## ### ##?????????? | | ???????# ?## #?????????? | | ???????#[ ]## ## #????????? | | ??????????# ### #### #### ### ##????????? | | ??????????## ##?## #??# #??# #?# #?????????? | | ???????????## ##???# #### #??# #?## #????????? | | ????????????###????# #### #??# ???????? | | ???????????????????######M #??# ??????? | | ???????????????????????## #??## ###?????? | | ???????????????????????# @ #####???# #???????? | | ???????????????????????# #????????# ???????? | | ??????????????????????## #????????? ??????? | | ?????????????????????## ##?????????####??????? | | ?????????????????????# ######???????????????? | | ?????????????????????# ####??####??????? | | ?????????????????????# #### ###????? | | ?????????????????????## #????? | | ?????????????????????## ????#? | | ?????????????????????# ???? | | ?????????????????????# #????? | | ?????????????????????# ####### ##????? | | ?????????????????##### #??????# #????## | | ?????????????????# #??????# #????# | | ?????????????????# ####??????# #????# | | ?????????????????# #??#####??# ####??? | | ?????????????????# #### #### ##??? | | ????????????###### ### ##?? | | ????? #?## ### ##? | | ?????# ## #######??####?## ## | | ????????#####+##### #### #??????????????## # | | ??????????????????# #??## ##???????????????# | | ??????????????????# #???# ##????????????????# | | ??????????????????# #???###?????????????????##### | | ??????????????????# #???????????????????????????? | +----------------------------------------------------+ Best States ------------- Heat Dissipation 56 Coolant Potential 65 Energy Generation 15 Energy Capacity 250 Matter Stores 300 Matter Capacity 300 Sight Range 16 Robot Scan Range 15 Terrain Scan Density 10 Armor Coverage 525 Utility Shielding 33 Evasion (%) 55 Recoil Reduction 7 Offensive Hacking 10 Item Schematics ----------------- Huge Storage Unit | -10/Materials | Hacked Robot Schematics ------------------ None Fabricated ------------ Nothing Repaired ---------- Nothing Alien Tech Used ----------------- None Achievements -------------- None Challenges ------------ None Game ------ Seed CloakingLargeSabre Manual? 0 Play Time 00:53:18 Cumulative 175.8 hours Start 2025.06.24 @ 20:48:13 End 2025.06.24 @ 22:26:34 Sessions 1 Manual Loads 0 Difficulty Rogue Special Mode None Game No. 93 Rogue 93 Adventurer 0 Explorer 0 Win Type - Total 4 Types 3/0/1/0/0/0/0/0/0/0 Lore% 55 Gallery% 45 Achievement% 49 Wizard Run 0 Options --------- Layout 0 ASCII 0 Keyboard 1 Movement Vi Keybinds 0 Fullscreen 1 Font 24/Terminus Map View 76x50 Zoom Use 0% Tactical HUD 1 Map Filters NONE Filters NONE Steam 1 RUN: 9733068f-e41f-4439-8207-c37e544c29c2